Workbook

Sheet दिशानिर्देश
B1: उपयोग के दिशानिर्देश
B2: 1 | C2: इस वर्कबुक पर कार्य करते समय फॉन्ट समस्या हो तो KrutiDev 010 व DevLys 010 इनस्टॉल करे वर्क बुक के फॉन्ट काम करने लगेंगे
B3: 2 | C3: MASTER DATA SHEET की सभी पूर्तियां करनी अनिवार्य है |
B4: 3 | C4: मोबाइल में उपयोग हेतु WPS OFFICE APPLICATION काम में ले, अन्यथा वर्कबुक ठीक प्रकार से काम नही करेगी |
B5: 4 | C5: मास्टर डाटा शीट में अपना वेतन व व्यक्तिगत जानकारी भरें व GA55 से विवरण का मिलान कर लेंवें विसंगति होने पर GA55 में मेन्यूल सुधार कर लेंवें |
B6: 5 | C6: EXTRA DEDUCATION शीट में वेतन के अतिरिक्त आय, विभिन्न कटौतियाँ, विभिन्न जमा राशि / छूट, वेतन के अलावा काटा गया आयकर आदि विवरण लिखा जाना है ।
B7: 6 | C7: OLD TAX REGIME व NEW TAX REGIME वाली शीट पूर्णतया लॉक है इसमें कुछ भी लिखने की अनुमति नही है जो भी सुधार करना हो GA55 व EXTRA DEDUCATION वाली शीटमें करे |
B8: 7 | C8: GA55 व TAX SHEETS को पेपर साइज़ A4 पर सेट किया हुआ है, OLD TAX REGIME OR NEW TAX REGIME में से जिसमे फायदा हो उसे चुने व उसका प्रिंट ले लेंवें |
A10: यह प्रोग्राम राजस्थान के शिक्षकों के अनुरूप बनाई गया है सुनील कुमार महावर, अध्यापक राप्रावि वेलु का खेत ,सायरा,(उदयपुर) किसी भी प्रकार की समस्या / सुझाव के लिए ईमेल करें-sk969019@gmail.com
A11: You Tube:- DIGITAL GURUJI HELP

Sheet MASTERDATA
B1: MASTER DATA FORM | H1: हमारे यू - ट्यूब चैनल को सबस्क्राइब अवश्य करें व साथ ही नोटिफिकेशन बेल को भी दबाये ताकि नवीनतम अपडेट्स आप तक पहुँच सकें DIGITALGURUJI HELP
B2: कार्मिक की व्यक्तिगत जानकारी
B3: 1 | C3: कार्यालय का नाम:- | D3: GOVT. SR. SEC. SCHOOL, RAWACHH, BLOCK-SAYARA,UDAIPUR RAJ.
B4: 2 | C4: कार्यालय का TAN NO.:- | D4: SHSHP888N | E4: 13 | F4: DDO का नाम:- | G4: S.KUMAR
B5: 3 | C5: कार्मिक का नाम:- | D5: SUNIL KUMAR MAHAWAR | E5: 14 | F5: कार्मिक का पद:- | G5: TEACHER
B6: 4 | C6: कार्मिक का PAN NO.:- | D6: DFGHJ1234H | E6: 15 | F6: कार्मिक का A/C NO.:- | G6: 1210100012901
B7: 5 | C7: SI नंबर:- | D7: XXXXXX | E7: 16 | F7: राज्य बीमा मासिक कटौती राशि:- | G7: 5000
B8: 6 | C8: GPF NO.:- | D8: RJUDXXXXXXX | E8: 17 | F8: कार्मिक का मोबाईल नंबर:- | G8: 99XXXXXXXXX
B9: 7 | C9: मार्च 2022 का मूल वेतन:- | D9: 36900 | E9: 18 | F9: मार्च 2022 की HRA दर | G9: 9%
B10: 8 | C10: पे लेवल :- | D10: L10 | E10: 19 | F10: GPF की मासिक कटौती:- | G10: 2850
B11: 9 | C11: क्या आपने वित्तीय वर्ष 2022-23 मे समर्पित लिया है? | D11: NO | E11: 20 | F11: यदि हाँ, तो समर्पित बिल माह:- | G11: NA | L11: L1
B12: 10 | C12: क्या आपको बोनस मिला है ? | D12: YES | E12: 21 | F12: क्या आपने RGHS कटौती का विकल्प लिया है ? | G12: YES | K12: YES | L12: L2
B13: 11 | C13: दुर्घटना बीमा प्रीमियम राशि:- | E13: 22 | F13: क्या हितकारी निधि की कटौती करनी है ? | G13: NO | K13: NO | L13: L3
B14: 12 | C14: क्या आप वरिष्ट नागरिक (60-80) आयु वर्ग में आते है ? | D14: NO | E14: 23 | F14: शहरी क्षतिपूर्ती भत्ता (CCA) :- | G14: NA | J14: NA | K14: NA | L14: L4
B15: NOTE:- इस वर्क बुक को तैयार करने मे पूर्ण सावधानी बरती गयी है, यदि फिर भी कोई विसंगति होती है तो, विभागीय आदेश ही मान्य होंगे, जिसका उत्तरदायित्व शीट तैयार करने वाले का नही होगा | | J15: 9% | K15: 2022-03-22 | L15: L5
C16: https://youtu.be/7a0Kds6wPcg | J16: 18% | K16: 2022-04-22 | L16: L6
H17: JJJJJJ | J17: NA | K17: 2022-05-22 | L17: L7
J18: 320 | K18: 2022-06-22 | L18: L8
J19: 620 | K19: 2022-07-22 | L19: L9
J20: 1000 | K20: 2022-08-22 | L20: L10
K21: 2022-09-22 | L21: L11
K22: 2022-10-22 | L22: L12
K23: 2022-11-22 | L23: L13
K24: 2022-12-22 | L24: L14
K25: 2022-01-23 | L25: L15
K26: 2022-02-23 | L26: L16
L27: L17
L28: L18
L29: L19
L30: L20
L31: L21
L32: L22
L33: L23
L34: L24
L35: L25

Sheet GA55
C2: =MASTERDATA!D3 -> GOVT. SR. SEC. SCHOOL, RAWACHH, BLOCK-SAYARA,UDAIPUR RAJ.
C3: Salary and Deduction Detail for FY : 2022-23
C5: Name : | D5: =MASTERDATA!D5 -> SUNIL KUMAR MAHAWAR | K5: PAN : | M5: =MASTERDATA!D6 -> DFGHJ1234H | R5: TAN: | S5: =MASTERDATA!D4 -> SHSHP888N | Y5: Bank A/c : | AA5: =MASTERDATA!G6 -> 1210100012901
C6: Post : | D6: =IF(MASTERDATA!G5="","",CONCATENATE(MASTERDATA!G5," ","(",MASTERDATA!D10,")")) -> TEACHER (L10) | K6: SI No : | M6: =MASTERDATA!D7 -> XXXXXX | R6: =MASTERDATA!C8 -> GPF NO.:- | T6: =IF(MASTERDATA!D8="","",MASTERDATA!D8) -> RJUDXXXXXXX | Y6: Mobile No. : | AA6: =MASTERDATA!G8 -> 99XXXXXXXXX
C7: Month | D7: Basic Pay | E7: Dearness Pay | F7: Leave Pay | G7: Spl. Pay | H7: D.A. | I7: H.R.A. | J7: Washing Allow. | K7: ROP (If any, put the value in minus) | L7: =IF(MASTERDATA!G14="NA","Other Allowance","CCA") -> Other Allowance | M7: Other Allowance | N7: Gross Salary | O7: GPF/GPF2004 | P7: GPF LOAN | Q7: SI | R7: SI LOAN + INT | S7: RGHS / RPMF | T7: LIC | U7: Group Insurance Accidental | V7: Income Tax / TDS | W7: Hitkari Nidhi | X7: Other Deduction | Y7: Other Deduction | Z7: Total Deduction | AA7: Net Payment | AB7: Bill No. - Date / TV No. - Date
B8: 3 | C8: 2022-03-01 | D8: =MASTERDATA!D9 -> 36900 | E8: 0 | F8: 0 | G8: 0 | H8: =ROUND(31%*D8,0) -> 11439 | I8: =IF(MASTERDATA!$G$9="NA",0,IF(MASTERDATA!$G$9=9%,ROUND(0.09*D8,0),ROUND(0.18*D8,0))) -> 3321 | L8: =IF(MASTERDATA!G14="NA","",MASTERDATA!G14) ->  | N8: =SUM(D8:M8) -> 51660 | P8: 0 | Q8: =MASTERDATA!G7 -> 5000 | R8: 0 | S8: 330 | U8: 0 | V8: 2500 | Z8: =SUM(O8:Y8) -> 7,830 | AA8: =N8-Z8 -> 43,830
B9: 4 | C9: 2022-04-01 | D9: =D8 -> 36900 | E9: 0 | F9: 0 | G9: 0 | H9: =ROUND(34%*D9,0) -> 12546 | I9: =IF(MASTERDATA!$G$9="NA",0,IF(MASTERDATA!$G$9=9%,ROUND(0.09*D9,0),ROUND(0.18*D9,0))) -> 3321 | J9: 0 | K9: 0 | L9: =IF(L$8=L77,0,L8) -> 0 | N9: 52767 | O9: =O8 -> 0 | P9: 0 | Q9: =Q8 -> 5000 | R9: 0 | S9: =IF(MASTERDATA!$G$12="NO",0,IF(D9<18001,265,IF(D9<33501,440,IF(D9<54001,658,875)))) -> 658 | T9: =T8 -> 0 | V9: =V8 -> 2500 | Y9: 0 | Z9: =SUM(O9:Y9) -> 8,158 | AA9: 44,609
B10: 5 | C10: 2022-05-01 | D10: =D9 -> 36900 | E10: 0 | F10: 0 | G10: 0 | H10: =ROUND(34%*D10,0) -> 12546 | I10: =IF(MASTERDATA!$G$9="NA",0,IF(MASTERDATA!$G$9=9%,ROUND(0.09*D10,0),ROUND(0.18*D10,0))) -> 3321 | J10: 0 | K10: 0 | L10: =IF(L$8=0,0,L9) -> 0 | N10: 52767 | O10: =O11*2 -> 5700 | P10: 0 | Q10: 5000 | R10: 0 | S10: =IF(MASTERDATA!$G$12="NO",0,IF(D10<18001,265,IF(D10<33501,440,IF(D10<54001,658,875)))) -> 658 | T10: 0 | U10: 0 | V10: =V9 -> 2500 | Y10: 0 | Z10: 13,858 | AA10: 38,909
B11: 6 | C11: 2022-06-01 | D11: =D10 -> 36900 | E11: 0 | F11: 0 | G11: 0 | H11: 12546 | I11: =IF(MASTERDATA!$G$9="NA",0,IF(MASTERDATA!$G$9=9%,ROUND(0.09*D11,0),ROUND(0.18*D11,0))) -> 3321 | J11: 0 | K11: 0 | L11: 0 | N11: 52767 | O11: =MASTERDATA!G10 -> 2850 | P11: 0 | Q11: 5000 | R11: 0 | S11: =IF(MASTERDATA!$G$12="NO",0,IF(D11<18001,265,IF(D11<33501,440,IF(D11<54001,658,875)))) -> 658 | T11: 0 | U11: 0 | V11: 2500 | Y11: 0 | Z11: 11,008 | AA11: 41,759
B12: 7 | C12: 2022-07-01 | D12: =MROUND(ROUND(1.03*D11,0),100) -> 38000 | E12: 0 | F12: 0 | G12: 0 | H12: 12920 | I12: =IF(MASTERDATA!$G$9="NA",0,IF(MASTERDATA!$G$9=9%,ROUND(0.09*D12,0),ROUND(0.18*D12,0))) -> 3420 | J12: 0 | K12: 0 | L12: 0 | N12: 54340 | O12: 2850 | P12: 0 | Q12: 5000 | R12: 0 | S12: =IF(MASTERDATA!$G$12="NO",0,IF(D12<18001,265,IF(D12<33501,440,IF(D12<54001,658,875)))) -> 658 | T12: 0 | U12: 0 | V12: 2500 | Y12: 0 | Z12: 11,008 | AA12: 43,332
B13: 8 | C13: 2022-08-01 | D13: =D12 -> 38000 | E13: 0 | F13: 0 | G13: 0 | H13: 12920 | I13: =IF(MASTERDATA!$G$9="NA",0,IF(MASTERDATA!$G$9=9%,ROUND(0.09*D13,0),ROUND(0.18*D13,0))) -> 3420 | J13: 0 | K13: 0 | L13: 0 | N13: 54340 | O13: 5000 | P13: 0 | Q13: 5000 | R13: 0 | S13: =IF(MASTERDATA!$G$12="NO",0,IF(D13<18001,265,IF(D13<33501,440,IF(D13<54001,658,875)))) -> 658 | T13: 0 | U13: 0 | V13: 2500 | Y13: 0 | Z13: 13,158 | AA13: 41,182
B14: 9 | C14: 2022-09-01 | D14: 38000 | E14: 0 | F14: 0 | G14: 0 | H14: =ROUND(34%*D14,0) -> 12920 | I14: =IF(MASTERDATA!$G$9="NA",0,IF(MASTERDATA!$G$9=9%,ROUND(0.09*D14,0),ROUND(0.18*D14,0))) -> 3420 | J14: 0 | K14: 0 | L14: 0 | N14: 54340 | O14: 5000 | P14: 0 | Q14: 5000 | R14: 0 | S14: =IF(MASTERDATA!$G$12="NO",0,IF(D14<18001,265,IF(D14<33501,440,IF(D14<54001,658,875)))) -> 658 | T14: 0 | U14: 0 | V14: 2500 | Y14: 0 | Z14: 13,158 | AA14: 41,182
B15: 10 | C15: 2022-10-01 | D15: 38000 | E15: 0 | F15: 0 | G15: 0 | H15: =ROUND(38%*D15,0) -> 14440 | I15: =IF(MASTERDATA!$G$9="NA",0,IF(MASTERDATA!$G$9=9%,ROUND(0.09*D15,0),ROUND(0.18*D15,0))) -> 3420 | J15: 0 | K15: 0 | N15: =SUM(D15:M15) -> 55860 | O15: 5000 | P15: 0 | Q15: 5000 | R15: 0 | S15: =IF(MASTERDATA!$G$12="NO",0,IF(D15<18001,265,IF(D15<33501,440,IF(D15<54001,658,875)))) -> 658 | T15: 0 | U15: 0 | V15: 2500 | Y15: 0 | Z15: 13,158 | AA15: 42,702
B16: 11 | C16: 2022-11-01 | D16: 38000 | E16: 0 | F16: 0 | G16: 0 | H16: =ROUND(38%*D16,0) -> 14440 | I16: =IF(MASTERDATA!$G$9="NA",0,IF(MASTERDATA!$G$9=9%,ROUND(0.09*D16,0),ROUND(0.18*D16,0))) -> 3420 | J16: 0 | K16: 0 | L16: 0 | N16: 55860 | O16: 5000 | P16: 0 | Q16: 5000 | R16: 0 | S16: =IF(MASTERDATA!$G$12="NO",0,IF(D16<18001,265,IF(D16<33501,440,IF(D16<54001,658,875)))) -> 658 | T16: 0 | U16: 0 | V16: 2500 | Y16: 0 | Z16: 13,158 | AA16: 42,702
B17: 12 | C17: 2022-12-01 | D17: 38000 | E17: 0 | F17: 0 | G17: 0 | H17: 14440 | I17: =IF(MASTERDATA!$G$9="NA",0,IF(MASTERDATA!$G$9=9%,ROUND(0.09*D17,0),ROUND(0.18*D17,0))) -> 3420 | J17: 0 | K17: 0 | L17: 0 | N17: 55860 | O17: 5000 | P17: 0 | Q17: 5000 | R17: 0 | S17: =IF(MASTERDATA!$G$12="NO",0,IF(D17<18001,265,IF(D17<33501,440,IF(D17<54001,658,875)))) -> 658 | T17: 0 | U17: 0 | V17: 2500 | W17: =IF(MASTERDATA!G13="NO",0,IF(500,250)) -> 0 | Y17: 0 | Z17: 13,158 | AA17: 42,702
B18: 1 | C18: 2023-01-01 | D18: 38000 | E18: 0 | F18: 0 | G18: 0 | H18: 14440 | I18: =IF(MASTERDATA!$G$9="NA",0,IF(MASTERDATA!$G$9=9%,ROUND(0.09*D18,0),ROUND(0.18*D18,0))) -> 3420 | J18: 0 | K18: 0 | L18: 0 | N18: 55860 | O18: 5000 | P18: 0 | Q18: 5000 | R18: 0 | S18: =IF(MASTERDATA!$G$12="NO",0,IF(D18<18001,265,IF(D18<33501,440,IF(D18<54001,658,875)))) -> 658 | T18: 0 | U18: 0 | V18: 2500 | Y18: 0 | Z18: 13,158 | AA18: 42,702
B19: 2 | C19: 2023-02-01 | D19: 38000 | E19: 0 | F19: 0 | G19: 0 | H19: 14440 | I19: =IF(MASTERDATA!$G$9="NA",0,IF(MASTERDATA!$G$9=9%,ROUND(0.09*D19,0),ROUND(0.18*D19,0))) -> 3420 | J19: 0 | K19: 0 | L19: 0 | N19: 55860 | O19: 5000 | P19: 0 | Q19: 5000 | R19: 0 | S19: =IF(MASTERDATA!$G$12="NO",0,IF(D19<18001,265,IF(D19<33501,440,IF(D19<54001,658,875)))) -> 658 | T19: 0 | U19: 0 | V19: 2500 | Y19: 0 | Z19: 13,158 | AA19: 42,702
C20: Salary Arrear | N20: 0 | Z20: 0 | AA20: 0
C21: Surender 2022-23 | N21: 0 | Z21: 0 | AA21: 0
C22: Bonus 2022-23 | D22: =IF(MASTERDATA!D12="YES",6774,0) -> 6774 | N22: 6774 | O22: =IF(D22=0,0,ROUND(D22*25%,0)) -> 1694 | P22: 0 | Z22: 1,694 | AA22: =N22-Z22 -> 5,080
C23: DA Arrear 1/22 to 3/22 | H23: =D8*3%+D9*3%+D10*3% -> 3321 | N23: 3321 | O23: =N23 -> 3321 | P23: 0 | Z23: 3,321 | AA23: 0
C24: DA Arrear 7/22 to 9/22 | H24: =D12*4%+D13*4%+D14*4% -> 4560 | N24: 4560 | O24: =N24 -> 4560 | Z24: 4,560 | AA24: 0
C25: Other 1 | N25: 0 | Z25: =SUM(O25:Y25) -> 0 | AA25: 0
C26: TOTAL | D26: =SUM(D8:D25) -> 458,374 | E26: 0 | F26: 0 | G26: 0 | H26: 167,918 | I26: 40,644 | J26: 0 | K26: 0 | L26: 0 | M26: 0 | N26: 666,936 | O26: 55,975 | P26: 0 | Q26: 60,000 | R26: 0 | S26: 7,568 | T26: 0 | U26: 0 | V26: 30,000 | W26: 0 | X26: 0 | Y26: 0 | Z26: 153,543 | AA26: 513,393
E29: Signature of Employee | AA29: Signature of DDO
E30: =MASTERDATA!D5 -> SUNIL KUMAR MAHAWAR | N30: digitalgurujihelp | AA30: =MASTERDATA!G4 -> S.KUMAR

Sheet EXTRA DEDUCATION
A1: वेतन के अलावा अन्य आय, कटौतियाँ, एवं छूट का विवरण
A2: =MASTERDATA!D5& ", "&'GA55'!D6&" PAN- "&'GA55'!T6 -> SUNIL KUMAR MAHAWAR, TEACHER (L10) PAN- RJUDXXXXXXX
A4: 1 | B4: मकान किराया भत्ता (छूट जो लेनी है) HRA | C4: 0 | E4: 19 | F4: स्टेण्डर्ड डिडेक्शन रूपये 50,000 (अधिकतम) धारा 16 (ia) | G4: 50,000
A5: 2 | B5: मनोरंजन भता धारा 16 (ii) (Entertainment A\llowance) | C5: 0 | E5: 20 | F5: बचत खाते (All Saving Accounts) की जमा राशि पर प्राप्त ब्याज | G5: 0
A6: 3 | B6: व्यवयाय कर धारा 16 (iii) के अन्तगर्त (Business tax) | C6: 0 | E6: 21 | F6: FD (Bank/ Post Office) आदि अन्य जमा राशि पर प्राप्त कुल ब्याज (PPF को छोड़कर) | G6: 0
A7: 4 | B7: गृह सम्पति से प्राप्त किराया - आय | C7: 0 | E7: 22 | F7: ब्याज के अलावा अन्य आय (विभिन्न स्त्रो़त्र से) | G7: 0
A8: 5 | B8: गृहकर (House Tax) | C8: 0 | E8: 23 | F8: अन्य मद में जमा करायी गयी राशि यदि कोई हो तो (धारा 80C के अन्तर्गत) | G8: 0
A9: 6 | B9: गृह ऋण किस्त मूलधन (12 Month) HBA Premium | C9: 0 | E9: 24 | F9: धारा 80CCC पेंशन प्लान हेतु अंशदान (NPS के अलावा) | G9: 0
A10: 7 | B10: गृह ऋण किस्त ब्याज (12 Month) HBA Interest | C10: 0 | E10: 25 | F10: स्थगित वार्षिकी (Defferred Anniuty) | G10: 0
A11: 8 | B11: जीवन बीमा प्रीमियम (जो वेतन से नही काटा गया) LIC | C11: 0 | E11: 26 | F11: धारा 10(14) के अन्तर्गत भत्ते जो कर मुक्त है | G11: 0
A12: 9 | B12: पीएलआई (Postal Life Insurance) PLI | C12: 0 | E12: 27 | F12: धारा 80D -चिकित्सा बीमा प्रीमियम (सामान्य 25000, वरिष्ठ नागरिक 50000) | G12: 0
A13: 10 | B13: टयूशन फीस (Tution Fees) | C13: 0 | E13: 28 | F13: धारा 80DD-विकलांग आश्रितों के चिकित्सा उपचार (विकलांगता 40%-75000, 80%-125000) | G13: 0
A14: 11 | B14: यू एल आई पी (ULIP) / वार्षिक प्लान | C14: 0 | E14: 29 | F14: धारा 80DDB- विशिष्ट रोगों के उपचार हेतु कटौती (सामान्य 40000, वरिष्ठ नागरिक 1 लाख) | G14: 0
A15: 12 | B15: राष्ट्रीय बचत पत्र (NSC) | C15: 0 | E15: 30 | F15: धारा 80E- उच्च शिक्षा हेतु लिए ऋण का ब्याज | G15: 0
A16: 13 | B16: राष्ट्रीय बचत पत्र पर अदत ब्याज (NSC Interest) | C16: 0 | E16: 31 | F16: धारा 80G-धर्मार्थ संस्थाओं आदि को दिये दान (क श्रेणी 100%, एवं ख श्रेणी 50%) | G16: 0
A17: 14 | B17: लोक भविष्य निधि (PPF) | C17: 0 | E17: 32 | F17: धारा 80U- स्थाई शारीरिक विकलांगता (अधिकतम 75000, 80% विकलांगता 125000) | G17: 0
A18: 15 | B18: राष्ट्रीय बचत स्कीम (NSS) | C18: 0 | E18: 33 | F18: धारा 80GGA- अनुमोदित वैज्ञानिक,सामाजिक,ग्रामीण विकास हेतु दिया गया दान | G18: 0
A19: 16 | B19: सुकन्या समृद्धि योजना (SSY) | C19: 0 | E19: 34 | F19: धारा 89 के अन्तर्गत राहत | G19: 0
A20: 17 | B20: इक्विटी लिंक सेविंग स्कीम (Equaty Link Saving Scheme) | C20: 0 | E20: 35 | F20: वेतन बिल के अलावा जमा कराया गया आयकर (TDS) | G20: 0

Sheet OLD TAX REGIME
B1: =MASTERDATA!D3 -> GOVT. SR. SEC. SCHOOL, RAWACHH, BLOCK-SAYARA,UDAIPUR RAJ. | O1: Old Tax Regime
B2: आयकर गणना प्रपत्र वर्ष 2022-23 (कर निर्धारण वर्ष 2023-24)
B3: 1 | C3: नाम कर्मचारी : | E3: =MASTERDATA!D5 -> SUNIL KUMAR MAHAWAR | K3: पदनाम : | L3: ='GA55'!D6 -> TEACHER (L10) | O3: PAN : | P3: =MASTERDATA!D6 -> DFGHJ1234H
B4: 2 | C4: आय : वित्तिय वर्ष 2022-23 में प्राप्त कुल वेतन ( कर योग्य सुविधाओं के मुल्य सहित ) | P4: ='GA55'!N26 -> ₹ 666,936
B5: 3 | C5: गृह किराया, धारा 10 (13A) के अन्तगर्त एवं धारा 10 (14) के अन्तगर्त अन्य भते जो कर मुक्त्त है । | P5: ='EXTRA DEDUCATION'!C4+'EXTRA DEDUCATION'!G11 -> 0
B6: 4 | C6: शेष (2-3) | P6: =P4-P5 -> ₹ 666,936
B7: 5 | C7: (i) स्टेण्डर्ड डिडेक्शन (Standerd Deduction) Rs.50,000 (अधिकतम) धारा 16(ia) | M7: =IF('EXTRA DEDUCATION'!G4=0,0,(IF(AND(P6>50000,'EXTRA DEDUCATION'!G4=50000),50000,P6))) -> 50000.00
C8: (ii) मनोरंजन भता धारा 16 (ii) के अन्तर्गत (अधिकतम सीमा रू 5,000) | M8: ='EXTRA DEDUCATION'!C5 -> 0.00
C9: (iii) व्यवसाय कर धारा 16 (iii) के अन्तर्गत | M9: ='EXTRA DEDUCATION'!C6 -> 0.00
C10: योग (5) | P10: =SUM(M7:O9) -> ₹ 50,000
B11: 6 | C11: शेष (4-5) | P11: =P6-P10 -> ₹ 616,936
B12: 7 | C12: (अ) गृह सम्पति से आयः (1) स्वंय के उपयोग में - शून्य | K12: (2) प्राप्त किराया रुपये | M12: ='EXTRA DEDUCATION'!C7 -> 0.00
C13: (ब) घटायें | E13: किराये का 30% | H13: गृह ऋण पर ब्याज | K13: गृहकर | M13: योग 7 (ब)
E14: =ROUND(M12*0.3,0) -> 0.00 | H14: =IF('EXTRA DEDUCATION'!C10>200000,200000,'EXTRA DEDUCATION'!C10) -> 0.00 | K14: ='EXTRA DEDUCATION'!C8 -> 0.00 | M14: =E14+H14+K14 -> 0.00
C15: शेष -/+ 7 (अ) एवं योग 7(ब) | P15: =M12-M14 -> 0
B16: 8 | C16: कुल शेष - / + (6 एवं 7) | P16: =P11+P15 -> ₹ 616,936
B17: 9 | C17: अन्य आय | P17: ='EXTRA DEDUCATION'!G7 -> 0
B18: 10 | C18: सकल आय योग (8+9) | P18: =P16+P17 -> ₹ 616,936
B19: 11 | C19: घटाइये कटौतियाँ:- धारा US 80C, 80CCC,80CCD (1)
C20: (A) अधिकतम सीमा 1,50,000 /- (धारा 80CCE ) , ¼धारा 80CCD (2), के अलावा
C21: (i) | D21: राज्य बीमा (SI) | H21: ='GA55'!Q26 -> ₹ 60,000 | J21: (xi) | K21: पी एल आई (PLI) | N21: ='EXTRA DEDUCATION'!C12 -> 0
C22: (ii) | D22: जीवन बीमा प्रीमियम (LIC) | H22: ='GA55'!T26+'EXTRA DEDUCATION'!C11 -> 0
C23: (iii) | D23: राष्ट्रीय बचत पत्र (NSC) | H23: ='EXTRA DEDUCATION'!C15 -> 0 | J23: (xii) | K23: इक्विटी लिंक सेविंग स्कीम | N23: ='EXTRA DEDUCATION'!C20 -> 0
C24: (iv) | D24: लोक भविष्य निधि (PPF) | H24: ='EXTRA DEDUCATION'!C17 -> 0 | J24: (xiii) | K24: राष्ट्रीय बचत पत्र पर अदत ब्याज | N24: ='EXTRA DEDUCATION'!C16 -> 0
C25: (v) | D25: राष्ट्रीय बचत स्कीम (NSS) | H25: ='EXTRA DEDUCATION'!C18 -> 0 | J25: (xiv) | K25: टयूशन फीस | N25: ='EXTRA DEDUCATION'!C13 -> 0
C26: (vi) | D26: Gen.Provident Fund (GPF) | H26: ='GA55'!O26 -> ₹ 55,975 | J26: (xv) | K26: स्थगित वार्षिकी (Defferred Annuty) | N26: ='EXTRA DEDUCATION'!G10 -> 0
C27: (vii) | D27: सामूहिक बीमा प्रीमियम (G.Ins.) | H27: ='GA55'!U26 -> 0 | J27: (xvi) | K27: अन्य जमा राशि (धारा 80 सी के अन्तर्गत) | N27: ='EXTRA DEDUCATION'!G8 -> 0
C28: (viii) | D28: यू एल आई पी / वार्षिक प्लान | H28: ='EXTRA DEDUCATION'!C14 -> 0
C29: (ix) | D29: गृह ऋण किस्त (HBA Premium) | H29: ='EXTRA DEDUCATION'!C9 -> 0
C30: (x) | D30: सुकन्या समृद्धि योजना में जमा राशि | H30: ='EXTRA DEDUCATION'!C19 -> 0 | J30: (xvii) | K30: योग ( i से xviii ) | N30: =SUM(H21:I30)+SUM(N21:O27) -> ₹ 115,975
C31: अधिकतम कटौती की राशि 1.5 लाख रुपए तक | P31: =IF(N30<150001,ROUND(N30,0),150000) -> ₹ 115,975
C32: (B) घटाइये - धारा 80CCD(2) नियोक्ता द्वारा पेंशन अंशदान की राशि (अधिकतम वेतन का 10%) पृथक से छूट | P32: 0
C33: (C) घटाइये - धारा 80CCD(1B) नवीन पेंशन योजना में अतिरिक्त अंशदान (अधिकतम रू. 50,000) | P33: 0
C34: योग 11(A+B+C) | P34: =SUM(P31:Q33) -> ₹ 115,975
B35: 12 | C35: अन्य कटौतियाँ
C36: 1- धारा 80D चिकित्सा बीमा प्रीमियम (स्वयं,पति / पत्नी व बच्चों के लिए रू 25000, माता-पिता के लिए रू 25000, सीनियर सिटीजन रू 50,000) | P36: ='EXTRA DEDUCATION'!G12 -> 0
C37: 2- धारा 80DD विकलांग आश्रितों के चिकित्सा उपचार (अधिकतम 75,000 तथा 80% या अधिक विकलांगता 125,000) | P37: ='EXTRA DEDUCATION'!G13 -> 0
C38: 3- धारा 80DDB विशिष्ट रोंगों के उपचार हेतु कटौती (अधिकतम रू 40000, सीनियर सिटीजन हेतु रू 100,000) | P38: ='EXTRA DEDUCATION'!G14 -> 0
C39: 4- धारा 80E उच्च शिक्षा हेतु लिए ऋण का ब्याज | P39: ='EXTRA DEDUCATION'!G15 -> 0
C40: 5- धारा 80G धर्मार्थ संस्थाओं आदि को दिये दान (क श्रेणी में 100 प्रतिशत एवं ख श्रेणी में 50 प्रतिशत) | P40: ='EXTRA DEDUCATION'!G16 -> 0
C41: 6- धारा 80U स्थाई रूप से शारीरिक असमर्थतता की दशा में (अधिकतम 75,000 तथा 80% या अधिक विकलांगता 125,000) | P41: ='EXTRA DEDUCATION'!G17 -> 0
C42: 7- धारा 80TTA बचत खाते पर ब्याज की अधिकतम छूट रू 10,000 U/S 194(IA) | P42: =IF(MASTERDATA!D14="Yes",0,IF('EXTRA DEDUCATION'!G5>10000,10000,'EXTRA DEDUCATION'!G5)) -> 0
C43: 8- धारा 80TTB - aवरिष्ठ नागरिकों को सभी प्रकार के ब्याज पर अधिकतम छूट- 50,000 रू U/S 194(A) | P43: =IF(MASTERDATA!D14="NO",0,IF('EXTRA DEDUCATION'!G6<50001,'EXTRA DEDUCATION'!G6,50000)) -> 0
C44: 9- धारा 80GGA अनुमोदित वैज्ञानिक, सामाजिक, ग्रामीण विकास आदि हेतु दिया गया दान | P44: ='EXTRA DEDUCATION'!G18 -> 0
C45: कुल योग 12 (1 से 9 तक) | P45: =SUM(P36:Q44) -> 0
B46: 13 | C46: कुल कटौती ( 11 + 12) | P46: =P34+P45 -> ₹ 115,975
B47: 14 | C47: कर योग्य आय ( 10 - 13 ) | P47: =(P18-P46) -> ₹ 500,961
B48: 15 | C48: कुल आय की राशि को सम्पूर्ण करना ( दस के गुणक में ) धारा 288 A | P48: =ROUND(P47,-1) -> ₹ 500,960
B49: 16 | C49: आयकर की गणना उपरोक्त कालम 15 के आधार पर
C50: एक व्यक्ति कर दाता | H50: वरिष्ठ नागरिक (60 से 80 वर्ष तक) | L50: 80 वर्ष या अधिक आयु
C51: 2,50,000 तक | F51: Nil | H51: 3,00,000 तक | K51: Nil | P51: 0
C52: 2,50,001-5,00,000 | F52: 5% | H52: 3,00,001-5,00,000 | K52: 5% | L52: 5,00,000 तक | O52: Nil | P52: =ROUND(IF(MASTERDATA!$D$14="NO",IF(P48<250001,0,IF(P48>500000,12500,((P48-250000)*0.05))),IF(P48<300001,0,IF(P48>500000,10000,((P48-300000)*0.05)))),0) -> ₹ 12,500
C53: 5,00,001-10,00,000 | F53: 20% | H53: 5,00,001-10,00,000 | K53: 20% | L53: 5,00,001-10,00,000 | O53: 20% | P53: =IF(P48<500001,0,IF(P48>1000000,100000,((P48-500000)*0.2))) -> ₹ 192
C54: 10,00,000 से अधिक | F54: 30% | H54: 10,00,000 से अधिक | K54: 30% | L54: 10,00,000 से अधिक | O54: 30% | P54: =IF(P48<1000001,0,((P48-1000000)*0.3)) -> 0
C55: (1) योग आयकर | P55: =SUM(P51:Q54) -> ₹ 12,692
C56: (2) छूट धारा 87 A (2.50 लाख से 5 लाख तक की कर योग्य आय पर आयकर की छूट अधिकतम रू. 12,500 तक) | P56: =IF(P48>500000,0,IF(P55<12501,P55,12500)) -> 0
C57: (3) शेष आयकर (1-2) | P57: =P55-P56 -> ₹ 12,692
C58: (4) शिक्षा उपकर 2% एवं उच्च शिक्षा के लिए अधिभार 2% ( योग 4% ) | P58: =ROUND(P57*0.04,0) -> ₹ 508
C59: कुल आयकर (3+4) | P59: =SUM(P57:Q58) -> ₹ 13,200
B60: 17 | C60: घटाइये :- राहत धारा 89 के तहत | P60: ='EXTRA DEDUCATION'!G19 -> 0
B61: 18 | C61: कुल शेष आयकर | P61: =P59-P60 -> ₹ 13,200
B62: 19 | C62: आयकर कटौती का विवरण | F62: सितम्बर 2022 तक रूपये | J62: अक्टूबर से दिसम्बर 2022 रूपये | L62: जनवरी 2023 रूपये | M62: फरवरी 2023 रूपये | O62: टीडीएस रूपये | P62: कुल टैक्स कटौती योग कॉलम 19
F63: =SUM('GA55'!V8:V14) -> 17500 | J63: =SUM('GA55'!V15:V17) -> 7500 | L63: ='GA55'!V18 -> 2500 | M63: ='GA55'!V19 -> 2500 | O63: ='GA55'!V26+'EXTRA DEDUCATION'!G20 -> 30000 | P63: =O63 -> ₹ 30,000
B64: =IF(P61>P63,"Income Tax Payable (OLD TAX REGIME)",IF(P61<P63,"Income Tax Refundable (OLD TAX REGIME)","Income Tax Payable/Refundable (OLD TAX REGIME)")) -> Income Tax Refundable (OLD TAX REGIME) | P64: =P61-P63 -> ₹ -16,800
E66: Signature of Employee | O66: Signature of DDO

Sheet NEW TAX REGIME
B1: =MASTERDATA!D3 -> GOVT. SR. SEC. SCHOOL, RAWACHH, BLOCK-SAYARA,UDAIPUR RAJ. | O1: New Tax Regime
B2: आयकर गणना प्रपत्र वर्ष 2022-23 (कर निर्धारण वर्ष 2023-24)
B3: 1 | C3: नाम कर्मचारी : | E3: =MASTERDATA!D5 -> SUNIL KUMAR MAHAWAR | K3: पदनाम : | L3: ='GA55'!D6 -> TEACHER (L10) | O3: PAN : | P3: =MASTERDATA!D6 -> DFGHJ1234H
B4: 2 | C4: आय : वित्तिय वर्ष 2022-23 में प्राप्त कुल वेतन ( कर योग्य सुविधाओं के मुल्य सहित ) | P4: ='OLD TAX REGIME'!P4 -> ₹ 666,936
B5: 3 | C5: गृह किराया, धारा 10 (13A) के अन्तगर्त एवं धारा 10 (14) के अन्तगर्त अन्य भते जो कर मुक्त्त है । | P5: ='EXTRA DEDUCATION'!G11 -> 0
B6: 4 | C6: शेष (2-3) | P6: =P4-P5 -> ₹ 666,936
B7: 5 | C7: (i) स्टेण्डर्ड डिडेक्शन (Standerd Deduction) Rs.50,000 (अधिकतम) धारा 16(ia) | M7: 0.00
C8: (ii) मनोरंजन भता धारा 16 (ii) के अन्तर्गत (अधिकतम सीमा रू 5,000) | M8: 0.00
C9: (iii) व्यवसाय कर धारा 16 (iii) के अन्तर्गत | M9: 0.00
C10: योग (5) | P10: =SUM(M7:O9) -> 0
B11: 6 | C11: शेष (4-5) | P11: =P6-P10 -> ₹ 666,936
B12: 7 | C12: (अ) गृह सम्पति से आयः (1) स्वंय के उपयोग में - शून्य | K12: (2) प्राप्त किराया रुपये | M12: ='EXTRA DEDUCATION'!C7 -> 0.00
C13: (ब) घटायें | E13: किराये का 30% | H13: गृह ऋण पर ब्याज | K13: गृहकर | M13: योग 7 (ब)
E14: 0.00 | H14: 0.00 | K14: 0.00 | M14: 0.00
C15: शेष -/+ 7 (अ) एवं योग 7(ब) | P15: =M12 -> 0
B16: 8 | C16: कुल शेष - / + (6 ,oa 7½ | P16: =P11+P15 -> ₹ 666,936
B17: 9 | C17: अन्य आय | P17: ='EXTRA DEDUCATION'!G7 -> 0
B18: 10 | C18: सकल आय योग (8+9) | P18: =P16+P17 -> ₹ 666,936
B19: 11 | C19: घटाइये कटौतियाँ:-
C20: (A) धारा US 80C, 80CCC,80CCD (1) अधिकतम कटौती की राशि | P20: 0
C21: योग 11(A+B+C) | P21: =SUM(P20:Q20) -> 0
B22: 12 | C22: अन्य कटौतियाँ
C23: 1- धारा 80D चिकित्सा बीमा प्रीमियम (स्वयं,पति / पत्नी व बच्चों के लिए रू 25000, माता-पिता के लिए रू 25000, सीनियर सिटीजन रू 50,000) | P23: 0
C24: 2- धारा 80DD विकलांग आश्रितों के चिकित्सा उपचार (अधिकतम 75,000 तथा 80% या अधिक विकलांगता 125,000) | P24: 0
C25: 3- धारा 80DDB विशिष्ट रोंगों के उपचार हेतु कटौती (अधिकतम रू 40000, सीनियर सिटीजन हेतु रू 100,000) | P25: 0
C26: 4- धारा 80E उच्च शिक्षा हेतु लिए ऋण का ब्याज | P26: 0
C27: 5- धारा 80G धर्मार्थ संस्थाओं आदि को दिये दान (क श्रेणी में 100 प्रतिशत एवं ख श्रेणी में 50 प्रतिशत) | P27: 0
C28: 6- धारा 80U स्थाई रूप से शारीरिक असमर्थतता की दशा में (अधिकतम 75,000 तथा 80% या अधिक विकलांगता 125,000) | P28: 0
C29: 7- धारा 80TTA बचत खाते पर ब्याज की अधिकतम छूट रू 10,000 U/S 194(IA) | P29: 0
C30: 8- धारा 80TTB - aवरिष्ठ नागरिकों को सभी प्रकार के ब्याज पर अधिकतम छूट- 50,000 रू U/S 194(A) | P30: 0
C31: 9- धारा 80GGA अनुमोदित वैज्ञानिक, सामाजिक, ग्रामीण विकास आदि हेतु दिया गया दान | P31: 0
C32: कुल योग 12 (1 से 9 तक) | P32: =SUM(Q23:Q31) -> 0
B33: 13 | C33: कुल कटौती ( 11 + 12) | P33: =P21+P32 -> 0
B34: 14 | C34: कर योग्य आय ( 10 - 13 ) | P34: =(P18-P33) -> ₹ 666,936
B35: 15 | C35: कुल आय की राशि को सम्पूर्ण करना ( दस के गुणक में ) धारा 288 A | P35: =ROUND(P34,-1) -> ₹ 666,940
B36: 16 | C36: आयकर की गणना उपरोक्त कालम 15 के आधार पर
C37: 80 वर्ष या अधिक आयु | H37: वरिष्ठ नागरिक (60 से 80 वर्ष तक) | L37: एक व्यक्ति कर दाता (आयु 60 वर्ष तक)
C38: 3,00,000 तक | F38: Nil | H38: 3,00,000 तक | K38: Nil | L38: 2,50,000 तक | O38: Nil | P38: 0
C39: 3,00,001-5,00,000 | F39: 5% | H39: 3,00,001-5,00,000 | K39: 5% | L39: 2,50,001-5,00,000 | O39: 5% | P39: =ROUND(IF(MASTERDATA!$D$14="NO",IF(P35<250001,0,IF(P35>500000,12500,((P35-250000)*0.05))),IF(P35<300001,0,IF(P35>500000,10000,((P35-300000)*0.05)))),0) -> ₹ 12,500
C40: 5,00,001-7,50,000 | F40: 10% | H40: 5,00,001-7,50,000 | K40: 10% | L40: 5,00,001-7,50,000 | O40: 10% | P40: =IF(P35<500001,0,IF(P35>750000,25000,((P35-500000)*0.1))) -> ₹ 16,694
C41: 7,50,001 - 10,00,000 | F41: 15% | H41: 7,50,001 - 10,00,000 | K41: 15% | L41: 7,50,001 - 10,00,000 | O41: 15% | P41: =IF(P35<750001,0,IF(P35>1000000,37500,((P35-750000)*0.15))) -> 0
C42: 10,00,001 - 12,50,000 | F42: 20% | H42: 10,00,001 - 12,50,000 | K42: 20% | L42: 10,00,001 - 12,50,000 | O42: 20% | P42: =IF(P35<1000001,0,IF(P35>1250000,50000,((P35-1000000)*0.2))) -> 0
C43: 12,50,001 - 15,00,000 | F43: 25% | H43: 12,50,001 - 15,00,000 | K43: 25% | L43: 12,50,001 - 15,00,000 | O43: 25% | P43: =IF(P35<1250001,0,IF(P35>1500000,62500,((P35-1250000)*0.25))) -> 0
C44: 15,00,000 से अधिक | F44: 30% | H44: 15,00,000 से अधिक | K44: 30% | L44: 15,00,000 से अधिक | O44: 30% | P44: =IF(P35<1500001,0,(P35-1500000)*0.3) -> 0
C45: (1) योग आयकर | P45: =SUM(P38:Q44) -> ₹ 29,194
C46: (2) छूट धारा 87 A (2.50 लाख से 5 लाख तक की कर योग्य आय पर आयकर की छूट अधिकतम रू. 12,500 तक) | P46: =IF(P35>500000,0,IF(P45<12501,P45,12500)) -> 0
C47: (3) शेष आयकर (1-2) | P47: =P45-P46 -> ₹ 29,194
C48: (4) शिक्षा उपकर 2% एवं उच्च शिक्षा के लिए अधिभार 2% ( योग 4% ) | P48: =ROUND(P47*0.04,0) -> ₹ 1,168
C49: कुल आयकर (3+4) | P49: =SUM(P47:Q48) -> ₹ 30,362
B50: 17 | C50: घटाइये :- राहत धारा 89 के तहत | P50: ='EXTRA DEDUCATION'!G19 -> 0
B51: 18 | C51: कुल शेष आयकर | P51: =P49-P50 -> ₹ 30,362
B52: 19 | C52: आयकर कटौती का विवरण | F52: सितम्बर 2022 तक रूपये | J52: अक्टूबर से दिसम्बर 2022 रूपये | L52: जनवरी 2023 रूपये | M52: फरवरी 2023 रूपये | O52: टीडीएस रूपये | P52: कुल टैक्स कटौती योग कॉलम 19
F53: =SUM('GA55'!V8:V14) -> 17500 | J53: =SUM('GA55'!V15:V17) -> 7500 | L53: ='GA55'!V18 -> 2500 | M53: ='GA55'!V19 -> 2500 | O53: ='GA55'!V26+'EXTRA DEDUCATION'!G20 -> 30000 | P53: =O53 -> ₹ 30,000
B54: =IF(P51>P53,"Income Tax Payable (NEW TAX REGIME)",IF(P51<P53,"Income Tax Refundable (NEW TAX REGIME)","Income Tax Payble/Refundable")) -> Income Tax Payable (NEW TAX REGIME) | P54: =P51-P53 -> ₹ 362
E57: Signature of Employee | O57: Signature of DDO
